fUSD/lending_fUSD_20260314
["ID","MTS","AMOUNT","RATE_DAILY","PERIOD"]
[408378698,1773532238774,-500.0,0.00013973,2]
[408378699,1773532238787,-500.0,0.00013973,2]
[408378700,1773532238796,-500.0,0.00013973,2]
[408378701,1773532238805,-500.0,0.00013973,2]
[408378702,1773532238814,-500.0,0.00013973,2]
[408378703,1773532238823,-500.0,0.00013973,2]
[408378704,1773532238832,-455.0,0.00013973,2]
[408378705,1773532238842,-450.0,0.00013973,2]
[408378706,1773532238851,-466.0,0.00013988,2]
[408378707,1773532238859,-608.0,0.00013997,2]
[408378708,1773532238869,-1946.4807,0.00014,2]
[408378709,1773532238878,-157.0,0.00014016,2]
[408378710,1773532238887,-776.0,0.00014025,2]
[408378711,1773532238897,-1035.39,0.00014025,2]
[408378712,1773532238906,-244.08751804,0.00014027,2]
[408378713,1773532238915,-250.0,0.00014028,2]
[408378714,1773532238924,-500.0,0.00014028,2]
[408378715,1773532238934,-500.0,0.00014028,2]
[408378716,1773532238943,-500.0,0.00014028,2]
[408378717,1773532238953,-500.0,0.00014028,2]
[408378718,1773532238962,-162.33399582,0.00014028,2]
[408378719,1773532238972,-500.0,0.00014028,2]
[408378720,1773532238981,-500.0,0.00014028,2]
[408378721,1773532238990,-455.0,0.00014028,2]
[408378722,1773532238999,-1483.58,0.00014028,2]
[408378723,1773532239009,-666.0,0.00014036,2]
[408378724,1773532239018,-500.0,0.00014036,2]
[408378725,1773532239028,-500.0,0.00014036,2]
[408378726,1773532239037,-623.62005858,0.00014036,2]
[408378727,1773532239046,-581.32634648,0.00014036,2]
[408378728,1773532239055,-581.32634648,0.00014036,2]
[408378729,1773532239064,-581.32634648,0.00014036,2]
[408378730,1773532239074,-581.32634648,0.00014036,2]
[408378731,1773532239082,-581.32634648,0.00014036,2]
[408378732,1773532239091,-581.32634648,0.00014036,2]
[408378733,1773532239100,-581.32634648,0.00014036,2]
[408378734,1773532239110,-581.32634648,0.00014036,2]
[408378735,1773532239119,-581.32634648,0.00014036,2]
[408378736,1773532239128,-581.32634648,0.00014036,2]
[408378737,1773532239137,-581.32634648,0.00014036,2]
[408378738,1773532239146,-581.32634648,0.00014036,2]
[408378739,1773532239155,-581.32634648,0.00014036,2]
[408378740,1773532239164,-581.32634648,0.00014036,2]
[408378741,1773532239174,-581.32634648,0.00014036,2]
[408378742,1773532239183,-581.32634648,0.00014036,2]
[408378743,1773532239191,-581.32634648,0.00014036,2]
[408378744,1773532239201,-581.32634648,0.00014036,2]
[408378745,1773532239210,-581.32634648,0.00014036,2]
[408378746,1773532239219,-581.32634648,0.00014036,2]
[408378747,1773532239229,-581.32634648,0.00014036,2]
[408378748,1773532239241,-581.32634648,0.00014036,2]
[408378749,1773532239250,-581.32634648,0.00014036,2]
[408378750,1773532239259,-581.32634648,0.00014036,2]
[408378751,1773532239268,-581.32634648,0.00014036,2]
[408378752,1773532239278,-581.32634648,0.00014036,2]
[408378753,1773532239287,-581.32634648,0.00014036,2]
[408378754,1773532239296,-581.32634648,0.00014036,2]
[408378755,1773532239306,-581.32634648,0.00014036,2]
[408378756,1773532239316,-581.32634648,0.00014036,2]
[408378757,1773532239325,-581.32634648,0.00014036,2]
[408378758,1773532239334,-246.44003129,0.00014036,2]
[408378759,1773532239343,-579.69170091,0.00014036,2]
[408378760,1773532239352,-579.69170091,0.00014036,2]
[408378761,1773532239361,-579.69170091,0.00014036,2]
[408378762,1773532239370,-579.69170091,0.00014036,2]
[408378763,1773532239379,-579.69170091,0.00014036,2]
[408378764,1773532239388,-579.69170091,0.00014036,2]
[408378765,1773532239397,-579.69170091,0.00014036,2]
[408378766,1773532239406,-579.69170091,0.00014036,2]
[408378767,1773532239414,-579.69170091,0.00014036,2]
[408378768,1773532239423,-579.69170091,0.00014036,2]
[408378769,1773532239433,-579.69170091,0.00014036,2]
[408378770,1773532239442,-579.69170091,0.00014036,2]
[408378771,1773532239452,-579.69170091,0.00014036,2]
[408378772,1773532239461,-579.69170091,0.00014036,2]
[408378773,1773532239469,-579.69170091,0.00014036,2]
[408378774,1773532239478,-579.69170091,0.00014036,2]
[408378775,1773532239487,-579.69170091,0.00014036,2]
[408378776,1773532239496,-579.69170091,0.00014036,2]
[408378777,1773532239506,-579.69170091,0.00014036,2]
[408378778,1773532239515,-579.69170091,0.00014036,2]
[408378779,1773532239523,-579.69170091,0.00014036,2]
[408378780,1773532239532,-500.0,0.00014036,2]
[408378781,1773532239541,-558.46674247,0.00014036,2]
[408378782,1773532239550,-184.46738072,0.00014036,2]
[408378783,1773532239559,-433.20044258,0.00014036,2]
[408378784,1773532239569,-579.69170096,0.00014036,2]
[408378785,1773532239578,-500.0,0.00014036,2]
[408378786,1773532239587,-500.0,0.00014036,2]
[408378787,1773532239596,-500.0,0.00014036,2]
[408378788,1773532239605,-500.0,0.00014036,2]
[408378789,1773532239614,-500.0,0.00014036,2]
[408378790,1773532239623,-500.0,0.00014036,2]
[408378791,1773532239632,-500.0,0.00014036,2]
[408378792,1773532239641,-500.0,0.00014036,2]
[408378793,1773532239650,-500.0,0.00014036,2]
[408378794,1773532239659,-500.0,0.00014036,2]
[408378795,1773532239669,-500.3189122,0.00014036,2]
[408378796,1773532239678,-500.0,0.00014036,2]
[408378797,1773532239687,-500.0,0.00014036,2]
[408378798,1773532239697,-500.0,0.00014036,2]
[408378799,1773532239706,-500.0,0.00014036,2]
[408378800,1773532239716,-500.0,0.00014036,2]
[408378801,1773532239725,-500.0,0.00014036,2]
[408378802,1773532239735,-500.0,0.00014036,2]
[408378803,1773532239744,-500.0,0.00014036,2]
[408378804,1773532239755,-500.0,0.00014036,2]
[408378805,1773532239764,-500.0,0.00014036,2]
[408378806,1773532239774,-500.0,0.00014036,2]
[408378807,1773532239784,-500.0,0.00014036,2]
[408378808,1773532239793,-500.0,0.00014036,2]
[408378809,1773532239802,-500.0,0.00014036,2]
[408378810,1773532239811,-500.0,0.00014036,2]
[408378811,1773532239821,-500.0,0.00014036,2]
[408378812,1773532239832,-500.0,0.00014036,2]
[408378813,1773532239841,-500.0,0.00014036,2]
[408378814,1773532239850,-500.0,0.00014036,2]
[408378815,1773532239859,-350.00000001,0.00014036,2]
[408378816,1773532239867,-500.0,0.00014036,2]
[408378817,1773532239876,-500.0,0.00014036,2]
[408378818,1773532239885,-500.0,0.00014036,2]
[408378819,1773532239894,-500.0,0.00014036,2]
[408378820,1773532239903,-500.0,0.00014036,2]
[408378821,1773532239912,-500.0,0.00014036,2]
[408378822,1773532239921,-500.0,0.00014036,2]
[408378823,1773532239930,-500.0,0.00014036,2]
[408378824,1773532239939,-500.0,0.00014036,2]
[408378825,1773532239949,-500.0,0.00014036,2]
[408378826,1773532239958,-500.0,0.00014036,2]
[408378827,1773532239967,-500.0,0.00014036,2]
[408378828,1773532239976,-500.0,0.00014036,2]
[408378829,1773532239985,-500.0,0.00014036,2]
[408378830,1773532239995,-500.0,0.00014036,2]
[408378831,1773532240005,-500.0,0.00014036,2]
[408378832,1773532240015,-500.0,0.00014036,2]
[408378833,1773532240023,-500.0,0.00014036,2]
[408378834,1773532240033,-500.0,0.00014036,2]
[408378835,1773532240042,-595.88,0.00014036,2]
[408378836,1773532240051,-500.0,0.00014036,2]
[408378837,1773532240060,-500.0,0.00014036,2]
[408378838,1773532240069,-466.67085441,0.00014036,2]
[408378839,1773532240079,-32942.6924,0.00014037,2]
[408378840,1773532240088,-2500000.0,0.00014037,2]
[408378841,1773532240096,-1000.0,0.00014037,2]
[408378842,1773532240105,-461.0,0.00014043,2]
[408378843,1773532240114,-709.0,0.00014053,2]
[408378844,1773532240123,-254.0,0.0001406,2]
[408378845,1773532240132,-193.0,0.00014071,2]
[408378846,1773532240143,-500.0,0.00014073,2]
[408378847,1773532240152,-500.0,0.00014073,2]
[408378848,1773532240161,-619.71855644,0.00014073,2]
[408378849,1773532240171,-500.0,0.00014073,2]
[408378850,1773532240180,-500.0,0.00014073,2]
[408378851,1773532240189,-500.0,0.00014073,2]
[408378852,1773532240198,-500.0,0.00014073,2]
[408378853,1773532240207,-500.0,0.00014073,2]
[408378854,1773532240216,-500.0,0.00014073,2]
[408378855,1773532240226,-500.0,0.00014073,2]
[408378856,1773532240239,-500.0,0.00014073,2]
[408378857,1773532240247,-500.0,0.00014073,2]
[408378858,1773532240257,-500.0,0.00014073,2]
[408378859,1773532240266,-407.71239442,0.00014073,2]
[408378860,1773532240277,-200.0,0.00014076,2]
[408378861,1773532240286,-1282.0,0.0001408,2]
[408378862,1773532240296,-500.0,0.00014083,2]
[408378863,1773532240305,-150.0,0.00014083,2]
[408378864,1773532240314,-500.0,0.00014083,2]
[408378865,1773532240334,-500.0,0.00014083,2]
[408378866,1773532240344,-500.0,0.00014083,2]
[408378867,1773532240353,-500.0,0.00014083,2]
[408378868,1773532240363,-455.0,0.00014083,2]
[408378869,1773532240372,-1377.0,0.00014088,2]
[408378870,1773532240382,-1482.37915437,0.00014089,2]
[408378871,1773532240391,-3604.62355551,0.00014089,2]
[408378872,1773532240400,-3654.03218712,0.00014089,2]
[408378873,1773532240409,-3310.79851221,0.00014089,2]
[408378874,1773532240418,-3997.26586213,0.00014089,2]
[408378875,1773532240427,-308.0,0.00014099,2]
[408378876,1773532240437,-702.0,0.00014108,2]
[408378877,1773532240446,-1616.0,0.00014116,2]
[408378878,1773532240455,-249.0,0.00014127,2]
[408378879,1773532240465,-1057.70867964,0.00014136,2]
[408378880,1773532240474,-1057.70867964,0.00014136,2]
[408378881,1773532240483,-1057.70867964,0.00014136,2]
[408378882,1773532240493,-1057.70867964,0.00014136,2]
[408378883,1773532240502,-1057.70867964,0.00014136,2]
[408378884,1773532240511,-1057.70867964,0.00014136,2]
[408378885,1773532240521,-1057.70867964,0.00014136,2]
[408378886,1773532240531,-1057.70867964,0.00014136,2]
[408378887,1773532240542,-1057.70867964,0.00014136,2]
[408378888,1773532240551,-1057.70867964,0.00014136,2]
[408378889,1773532240560,-1057.70867964,0.00014136,2]
[408378890,1773532240570,-1057.70867964,0.00014136,2]
[408378891,1773532240580,-1057.70867964,0.00014136,2]
[408378892,1773532240590,-1057.70867964,0.00014136,2]
[408378893,1773532240600,-1057.70867964,0.00014136,2]
[408378894,1773532240609,-1057.70867964,0.00014136,2]
[408378895,1773532240620,-1057.70867964,0.00014136,2]
[408378896,1773532240633,-1057.70867964,0.00014136,2]
[408378897,1773532240643,-1057.70867964,0.00014136,2]
[408378898,1773532240654,-1057.70867964,0.00014136,2]
[408378899,1773532240663,-1057.70867964,0.00014136,2]
[408378900,1773532240672,-1057.70867964,0.00014136,2]
[408378901,1773532240682,-1057.70867964,0.00014136,2]
[408378902,1773532240695,-1057.70867964,0.00014136,2]
[408378903,1773532240704,-1057.70867964,0.00014136,2]
[408378904,1773532240713,-1057.70867964,0.00014136,2]
[408378905,1773532240723,-1057.70867964,0.00014136,2]
[408378906,1773532240732,-1057.70867964,0.00014136,2]
[408378907,1773532240741,-1057.70867964,0.00014136,2]
[408378908,1773532240750,-1057.70867964,0.00014136,2]
[408378909,1773532240759,-1057.70867964,0.00014136,2]
[408378910,1773532240769,-1057.70867964,0.00014136,2]
[408378911,1773532240779,-1057.70867964,0.00014136,2]
[408378912,1773532240788,-1057.70867964,0.00014136,2]
[408378913,1773532240798,-500.0,0.00014136,2]
[408378914,1773532240807,-500.0,0.00014136,2]
[408378915,1773532240816,-500.0,0.00014136,2]
[408378916,1773532240826,-500.0,0.00014136,2]
[408378917,1773532240835,-500.0,0.00014136,2]
[408378918,1773532240844,-208.62715259,0.00014136,2]
[408378919,1773532240853,-1585.0,0.00014136,2]
[408378920,1773532240862,-500.0,0.00014138,2]
[408378921,1773532240872,-500.0,0.00014138,2]
[408378922,1773532240881,-204.83861542,0.00014138,2]
[408378923,1773532240894,-500.0,0.00014138,2]
[408378924,1773532240904,-500.0,0.00014138,2]
[408378925,1773532240913,-500.0,0.00014138,2]
[408378926,1773532240922,-455.0,0.00014138,2]
[408378927,1773532240932,-1618.0,0.00014144,2]
[408378928,1773532240941,-349.0,0.00014155,2]
[408378929,1773532240950,-320.0,0.00014172,2]
[408378930,1773532240960,-500.0,0.00014173,2]
[408378931,1773532240969,-500.0,0.00014173,2]
[408378932,1773532240979,-241.0,0.00014183,2]
[408378933,1773532240990,-500.0,0.00014192,2]
[408378934,1773532241000,-500.0,0.00014192,2]
[408378935,1773532241009,-500.0,0.00014192,2]
[408378936,1773532241018,-500.0,0.00014192,2]
[408378937,1773532241028,-455.0,0.00014192,2]
[408378938,1773532241038,-1915.0,0.000142,2]
[408378939,1773532241048,-142425.98652339,0.0001421,2]
[408378940,1773532241058,-191.0,0.00014211,2]
[408378941,1773532241069,-1677.0,0.00014228,2]
[408378942,1773532241080,-217.0,0.00014239,2]
[408378943,1773532241089,-500.0,0.00014247,2]
[408378944,1773532241102,-500.0,0.00014247,2]
[408378945,1773532241112,-500.0,0.00014247,2]
[408378946,1773532241121,-500.0,0.00014247,2]
[408378947,1773532241130,-455.0,0.00014247,2]
[408378948,1773532241140,-752.0,0.00014257,2]
[408378949,1773532241150,-500.0,0.00014273,2]
[408378950,1773532241160,-500.0,0.00014273,2]
[408378951,1773532241170,-500.0,0.00014273,2]
[408378952,1773532241180,-500.0,0.00014273,2]
[408378953,1773532241189,-871.0,0.00014285,2]
[408378954,1773532241199,-500.0,0.00014302,2]
[408378955,1773532241209,-500.0,0.00014302,2]
[408378956,1773532241218,-500.0,0.00014302,2]
[408378957,1773532241228,-500.0,0.00014302,2]
[408378958,1773532241241,-455.0,0.00014302,2]
[408378959,1773532241250,-1483.58,0.00014302,2]
[408378960,1773532241259,-300.55,0.00014316,2]
[408378961,1773532241269,-166.66,0.00014319,2]
[408378962,1773532241280,-500.0,0.00014334,2]
[408378963,1773532241290,-500.0,0.00014334,2]
[408378964,1773532241302,-500.0,0.00014334,2]
[408378965,1773532241314,-500.0,0.00014334,2]
[408378966,1773532241324,-500.0,0.00014334,2]
[408378967,1773532241334,-500.0,0.00014334,2]
[408378968,1773532241343,-500.0,0.00014334,2]
[408378969,1773532241353,-500.0,0.00014334,2]
[408378970,1773532241362,-500.0,0.00014334,2]
[408378971,1773532241372,-500.0,0.00014334,2]
[408378972,1773532241385,-500.0,0.00014334,2]
[408378973,1773532241394,-500.0,0.00014334,2]
[408378974,1773532241404,-500.0,0.00014334,2]
[408378975,1773532241413,-500.0,0.00014334,2]
[408378976,1773532241423,-500.0,0.00014334,2]
[408378977,1773532241432,-500.0,0.00014334,2]
[408378978,1773532241442,-500.0,0.00014337,2]
[408378979,1773532241452,-500.0,0.00014337,2]
[408378980,1773532241461,-500.0,0.00014337,2]
[408378981,1773532241472,-500.0,0.00014337,2]
[408378982,1773532241481,-500.0,0.00014337,2]
[408378983,1773532241494,-500.0,0.00014337,2]
[408378984,1773532241504,-500.0,0.00014337,2]
[408378985,1773532241513,-500.0,0.00014337,2]
[408378986,1773532241522,-500.0,0.00014337,2]
[408378987,1773532241531,-521.6043228,0.00014337,2]
[408378988,1773532241540,-500.0,0.00014337,2]
[408378989,1773532241549,-510.77,0.00014337,2]
[408378990,1773532241558,-500.0,0.00014337,2]
[408378991,1773532241747,-500.0,0.00014337,2]
[408378992,1773532241756,-500.0,0.00014337,2]
[408378993,1773532241765,-500.0,0.00014337,2]
[408378994,1773532241775,-500.0,0.00014337,2]
[408378995,1773532241784,-500.0,0.00014337,2]
[408378996,1773532241793,-500.0,0.00014337,2]
[408378997,1773532241802,-500.0,0.00014337,2]
[408378998,1773532241811,-500.0,0.00014337,2]
[408378999,1773532241820,-500.0,0.00014337,2]
[408379000,1773532241828,-500.0,0.00014337,2]
[408379001,1773532241838,-500.0,0.00014337,2]
[408379002,1773532241848,-500.0,0.00014337,2]
[408379003,1773532241857,-500.0,0.00014337,2]
[408379004,1773532241866,-500.0,0.00014337,2]
[408379005,1773532241876,-500.0,0.00014337,2]
[408379006,1773532241886,-500.0,0.00014337,2]
[408379007,1773532241895,-500.0,0.00014337,2]
[408379008,1773532241905,-500.0,0.00014337,2]
[408379009,1773532241915,-586.04621402,0.00014337,2]
[408379010,1773532241924,-500.0,0.00014337,2]
[408379011,1773532241933,-500.0,0.00014337,2]
[408379012,1773532241944,-500.0,0.00014337,2]
[408379013,1773532241954,-554.07454248,0.00014337,2]
[408379014,1773532241964,-500.0,0.00014337,2]
[408379015,1773532241974,-600.0,0.00014337,2]
[408379016,1773532241983,-1035.39,0.00014351,2]
[408379017,1773532241993,-500.0,0.00014357,2]
[408379018,1773532242002,-336.58574152,0.00014357,2]
[408379019,1773532242013,-267.0,0.00014357,2]
[408379020,1773532242022,-500.0,0.00014357,2]
[408379021,1773532242031,-455.0,0.00014357,2]
[408379022,1773532242041,-500.0,0.00014412,2]
[408379023,1773532242050,-500.0,0.00014412,2]
[408379024,1773532242059,-154.52031355,0.00014412,2]
[408379025,1773532242068,-455.0,0.00014412,2]
[408379026,1773532242078,-500.0,0.00014466,2]
[408379027,1773532242087,-455.0,0.00014466,2]
[408379028,1773532242096,-200.0,0.00014485,2]
[408379029,1773532242105,-150.99,0.00014504,2]
[408379030,1773532242114,-312.35,0.00014504,2]
[408379031,1773532242123,-3429.09,0.00014504,2]
[408379032,1773532242133,-9999.99,0.00014504,2]
[408379033,1773532242142,-150.99,0.00014504,2]
[408379034,1773532242152,-1900.01,0.00014504,2]
[408379035,1773532242161,-14512.39,0.00014504,2]
[408379036,1773532242171,-499.99,0.00014504,2]
[408379037,1773532242180,-999.99,0.00014504,2]
[408379038,1773532242189,-1041.46,0.00014504,2]
[408379039,1773532242199,-9999.99,0.00014504,2]
[408379040,1773532242208,-9999.99,0.00014504,2]
[408379041,1773532242217,-313.56,0.00014504,2]
[408379042,1773532242227,-299.99,0.00014504,2]
[408379043,1773532242243,-42681.04,0.00014504,2]
[408379044,1773532242253,-9999.99,0.00014504,2]
[408379045,1773532242263,-9999.99,0.00014504,2]
[408379046,1773532242271,-1000.0,0.00014521,2]
[408379047,1773532242283,-1000.0,0.00014521,2]
[408379048,1773532242293,-1000.0,0.00014521,2]
[408379049,1773532242302,-445.92650306,0.00014521,2]
[408379050,1773532242311,-168.3299599,0.00014521,2]
[408379051,1773532242320,-500.0,0.00014521,2]
[408379052,1773532242330,-455.0,0.00014521,2]
[408379053,1773532242339,-249.49,0.00014545,2]
[408379054,1773532242348,-500.0,0.00014573,2]
[408379055,1773532242357,-175.35428283,0.00014576,2]
[408379056,1773532242367,-455.0,0.00014576,2]
[408379057,1773532242376,-1483.58,0.00014576,2]
[408379058,1773532242385,-2000.0,0.00014584,2]
[408379059,1773532242395,-1000.0,0.00014621,2]
[408379060,1773532242404,-499.46578139,0.00014621,2]
[408379061,1773532242413,-1000.0,0.00014621,2]
[408379062,1773532242422,-312.31798352,0.00014621,2]
[408379063,1773532242431,-1000.0,0.00014621,2]
[408379064,1773532242440,-428.42882292,0.00014621,2]
[408379065,1773532242449,-1000.0,0.00014621,2]
[408379066,1773532242459,-331.86630007,0.00014621,2]
[408379067,1773532242469,-1000.0,0.00014621,2]
[408379068,1773532242478,-1000.0,0.00014621,2]
[408379069,1773532242488,-455.0,0.00014631,2]
[408379070,1773532242497,-151.0,0.00014634,2]
[408379071,1773532242506,-151.0,0.00014634,2]
[408379072,1773532242516,-151.0,0.00014634,2]
[408379073,1773532242525,-151.0,0.00014634,2]
[408379074,1773532242535,-500.0,0.00014685,2]
[408379075,1773532242544,-455.0,0.00014686,2]
[408379076,1773532242554,-1000.0,0.00014721,2]
[408379077,1773532242563,-455.0,0.0001474,2]
[408379078,1773532242572,-424.17891208,0.00014748,2]
[408379079,1773532242581,-166.66,0.00014762,2]
[408379080,1773532242590,-8565.29471997,0.0001479,2]
[408379081,1773532242599,-455.0,0.00014795,2]
[408379082,1773532242610,-541.42320536,0.00014821,2]
[408379083,1773532242619,-500.0,0.00014821,2]
[408379084,1773532242628,-1000.0,0.00014821,2]
[408379085,1773532242637,-749.87624117,0.00014827,2]
[408379086,1773532242648,-455.0,0.0001485,2]
[408379087,1773532242658,-1483.58,0.0001485,2]
[408379088,1773532242669,-10144.84683209,0.00014876,2]
[408379089,1773532242679,-521.57035787,0.00014885,2]
[408379090,1773532242689,-455.0,0.00014905,2]
[408379091,1773532242699,-500.0,0.00014959,2]
[408379092,1773532242709,-455.0,0.00014959,2]
[408379093,1773532242719,-300.0,0.0001496,2]
[408379094,1773532242730,-250.0,0.0001496,2]
[408379095,1773532242741,-600.0,0.0001496,2]
[408379096,1773532242752,-600.0,0.0001496,2]
[408379097,1773532242761,-600.0,0.0001496,2]
[408379098,1773532242771,-600.0,0.0001496,2]
[408379099,1773532242779,-5000.0,0.0001496,2]
[408379100,1773532242789,-459.0,0.00015014,2]
[408379101,1773532242798,-200.0,0.00015033,2]
[408379102,1773532242807,-255.0,0.00015049,2]
[408379103,1773532242817,-1500.0,0.00015068,2]
[408379104,1773532242826,-1500.0,0.00015068,2]
[408379105,1773532242835,-500.0,0.00015068,2]
[408379106,1773532242843,-193.63757919,0.00015068,2]
[408379107,1773532242852,-500.0,0.00015068,2]
[408379108,1773532242861,-5000.0,0.00015068,2]
[408379109,1773532242870,-254.07115113,0.00015068,2]
[408379110,1773532242878,-420.0,0.00015071,2]
[408379111,1773532242887,-1483.58,0.00015124,2]
[408379112,1773532242896,-1680.0,0.00015128,2]
[408379113,1773532242905,-500.0,0.00015168,2]
[408379114,1773532242914,-893.08543644,0.00015168,2]
[408379115,1773532242922,-1500.0,0.00015168,2]
[408379116,1773532242931,-1500.0,0.00015168,2]
[408379117,1773532242940,-1500.0,0.00015168,2]
[408379118,1773532242949,-166.66,0.00015206,2]
[408379119,1773532242958,-500.0,0.00015233,2]
[408379120,1773532242967,-420.0,0.00015267,2]
[408379121,1773532242976,-600.0,0.0001531,2]
[408379122,1773532242985,-9999.99,0.0001531,2]
[408379123,1773532242994,-13682.15,0.0001531,2]
[408379124,1773532243002,-193.0,0.0001533,2]
[408379125,1773532243012,-500.0,0.0001533,2]
[408379126,1773532243020,-300.0,0.0001533,2]
[408379127,1773532243030,-193.0,0.0001533,2]
[408379128,1773532243039,-1500.0,0.00015368,2]
[408379129,1773532243048,-500.0,0.00015373,2]
[408379130,1773532243057,-1483.58,0.00015398,2]
[408379131,1773532243067,-500.0,0.00015507,2]
[408379132,1773532243076,-200.0,0.00015581,2]
[408379133,1773532243086,-249.49,0.00015584,2]
[408379134,1773532243095,-500.0,0.00015616,2]
[408379135,1773532243103,-7135.16310505,0.00015643,2]
[408379136,1773532243207,-702.9548204,0.00015643,2]
[408379137,1773532243330,-727.17679452,0.00015643,2]
[408379138,1773532243340,-166.66,0.00015649,2]
[408379139,1773532243350,-1483.58,0.00015672,2]
[408379140,1773532243361,-2000.0,0.00015716,2]
[408379141,1773532243372,-1500.0,0.00015716,2]
[408379142,1773532243384,-2000.0,0.00015716,2]
[408379143,1773532243394,-500.0,0.00015781,2]
[408379144,1773532243403,-2000.0,0.00015916,2]
[408379145,1773532243413,-500.0,0.00015935,2]
[408379146,1773532243424,-482.7910397,0.00015935,2]
[408379147,1773532243434,-1483.58,0.00015946,2]
[408379148,1773532243444,-324.90506923,0.00015953,2]
[408379149,1773532243455,-244.08751804,0.00016045,2]
[408379150,1773532243464,-500.0,0.00016055,2]
[408379151,1773532243473,-851.8323473,0.0001611,2]
[408379152,1773532243482,-9999.99,0.00016116,2]
[408379153,1773532243491,-200.0,0.00016129,2]
[408379154,1773532243500,-2000.0,0.00016204,2]
[408379155,1773532243510,-1483.58,0.0001622,2]
[408379156,1773532243519,-433.0,0.00016248,2]
[408379157,1773532243529,-500.0,0.00016264,2]
[408379158,1773532243539,-2006.03669351,0.00016264,2]
[408379159,1773532243548,-500.0,0.00016329,2]
[408379160,1773532243557,-150.0,0.000164,2]
[408379161,1773532243567,-213.0,0.000164,2]
[408379162,1773532243576,-302.46,0.000164,2]
[408379163,1773532243585,-353.43973987,0.000164,2]
[408379164,1773532243595,-500.0,0.00016438,2]
[408379165,1773532243604,-207.39972075,0.00016438,2]
[408379166,1773532243613,-150.0,0.00016438,2]
[408379167,1773532243622,-500.0,0.00016438,2]
[408379168,1773532243631,-2500.0,0.00016464,2]
[408379169,1773532243640,-150.0,0.00016493,2]
[408379170,1773532243649,-500.0,0.00016493,2]
[408379171,1773532243659,-1483.58,0.00016494,2]
[408379172,1773532243668,-8565.29471997,0.00016497,2]
[408379173,1773532243677,-534.01,0.000165,2]
[408379174,1773532243686,-152.0,0.00016515,2]
[408379175,1773532243696,-300.55,0.00016539,2]
[408379176,1773532243705,-150.0,0.00016548,2]
[408379177,1773532243714,-500.0,0.00016548,2]
[408379178,1773532243723,-250.58262965,0.00016602,2]
[408379179,1773532243732,-500.0,0.00016602,2]
[408379180,1773532243742,-2351.0,0.00016641,2]
[408379181,1773532243752,-500.0,0.00016657,2]
[408379182,1773532243761,-200.0,0.00016677,2]
[408379183,1773532243771,-500.0,0.00016712,2]
[408379184,1773532243781,-587.0,0.00016727,2]
[408379185,1773532243790,-878.32,0.00016758,2]
[408379186,1773532243800,-500.0,0.00016767,2]
[408379187,1773532243809,-1483.58,0.00016768,2]
[408379188,1773532243819,-500.0,0.00016822,2]
[408379189,1773532243828,-500.0,0.00016876,2]
[408379190,1773532243839,-500.0,0.00016931,2]
[408379191,1773532243848,-391.89389432,0.00016967,2]
[408379192,1773532243858,-500.0,0.00016986,2]
[408379193,1773532243867,-507.0,0.00017,2]
[408379194,1773532243876,-300.0,0.00017021,2]
[408379195,1773532243886,-500.0,0.00017022,2]
[408379196,1773532243895,-250.0,0.00017022,2]
[408379197,1773532243904,-1500.0,0.00017022,2]